[Event "*** Titled Tuesday Blitz"]
[Site "Chess.com"]
[Date "2020.12.29"]
[Round "7"]
[White "IMVoja"]
[Black "Legendinunknown"]
[Result "0-1"]
[WhiteElo "2409"]
[BlackElo "2558"]
[TimeControl "180+1"]
[EndTime "11:17:39 PST"]
[Termination "Legendinunknown won by resignation"]

1. d4 {[%clk 0:03:00.9]} 1... d5 {[%clk 0:02:58.7]} 2. Bg5 {[%clk 0:02:59.7]}
2... h6 {[%clk 0:02:56.1]} 3. Bh4 {[%clk 0:02:58.4]} 3... c6 {[%clk 0:02:56.1]}
4. c3 {[%clk 0:02:57.4]} 4... Qb6 {[%clk 0:02:55.9]} 5. Qb3 {[%clk 0:02:55.7]}
5... Qxb3 {[%clk 0:02:54.2]} 6. axb3 {[%clk 0:02:55.3]} 6... Nd7 {[%clk
0:02:54.8]} 7. Nf3 {[%clk 0:02:52.9]} 7... e6 {[%clk 0:02:53]} 8. b4 {[%clk
0:02:52.5]} 8... Ne7 {[%clk 0:02:51.1]} 9. Bxe7 {[%clk 0:02:36.5]} 9... Bxe7
{[%clk 0:02:52]} 10. e3 {[%clk 0:02:36.6]} 10... Bd6 {[%clk 0:02:49.3]} 11. Nbd2
{[%clk 0:02:36.3]} 11... Nf6 {[%clk 0:02:48]} 12. Bd3 {[%clk 0:02:35.4]} 12...
O-O {[%clk 0:02:47.3]} 13. O-O {[%clk 0:02:34.5]} 13... Bd7 {[%clk 0:02:44.7]}
14. h3 {[%clk 0:02:28.6]} 14... a6 {[%clk 0:02:43.8]} 15. Nb3 {[%clk 0:02:27.9]}
15... Rae8 {[%clk 0:02:42.2]} 16. Nc5 {[%clk 0:02:26]} 16... Bc8 {[%clk
0:02:41.7]} 17. Ne5 {[%clk 0:02:22.6]} 17... Re7 {[%clk 0:02:31]} 18. f4 {[%clk
0:02:22.2]} 18... Ne8 {[%clk 0:02:26.1]} 19. g4 {[%clk 0:02:16.2]} 19... Nc7
{[%clk 0:02:24.5]} 20. Kg2 {[%clk 0:02:14.4]} 20... Rfe8 {[%clk 0:02:23.6]} 21.
h4 {[%clk 0:02:10.6]} 21... f6 {[%clk 0:02:18]} 22. Ng6 {[%clk 0:02:08.3]} 22...
Rf7 {[%clk 0:02:17.5]} 23. Rae1 {[%clk 0:01:39.8]} 23... e5 {[%clk 0:02:14.6]}
24. f5 {[%clk 0:01:39.7]} 24... b6 {[%clk 0:01:56.3]} 25. Na4 {[%clk 0:01:35.6]}
25... b5 {[%clk 0:01:52.8]} 26. Nc5 {[%clk 0:01:35.2]} 26... Bxc5 {[%clk
0:01:49.4]} 27. bxc5 {[%clk 0:01:32.4]} 27... a5 {[%clk 0:01:40.4]} 28. b3
{[%clk 0:01:28.3]} 28... Bb7 {[%clk 0:01:27.2]} 29. Ra1 {[%clk 0:01:22.7]} 29...
Ra8 {[%clk 0:01:27.6]} 30. dxe5 {[%clk 0:01:12.5]} 30... fxe5 {[%clk 0:01:22.8]}
31. Nxe5 {[%clk 0:01:11.1]} 31... Re7 {[%clk 0:01:22.9]} 32. Ng6 {[%clk
0:01:05.1]} 32... Rxe3 {[%clk 0:01:22.7]} 33. Rf3 {[%clk 0:01:02.1]} 33... Rxf3
{[%clk 0:01:20]} 34. Kxf3 {[%clk 0:01:02.1]} 34... a4 {[%clk 0:01:20]} 35. bxa4
{[%clk 0:00:59.7]} 35... bxa4 {[%clk 0:01:20.5]} 36. Ra3 {[%clk 0:00:54.9]}
36... Ba6 {[%clk 0:01:14.8]} 37. Bxa6 {[%clk 0:00:48.9]} 37... Rxa6 {[%clk
0:01:15.7]} 38. c4 {[%clk 0:00:34.8]} 38... dxc4 {[%clk 0:01:12.6]} 39. Re3
{[%clk 0:00:34.5]} 39... a3 {[%clk 0:01:07.9]} 40. Re7 {[%clk 0:00:33.9]} 40...
Ra7 {[%clk 0:01:07.5]} 41. Rd7 {[%clk 0:00:33.4]} 41... Ra8 {[%clk 0:01:04.6]}
42. Ne7+ {[%clk 0:00:22.5]} 42... Kh7 {[%clk 0:01:00.4]} 43. f6 {[%clk
0:00:22.5]} 43... a2 {[%clk 0:00:57.7]} 44. Nf5 {[%clk 0:00:22.5]} 44... a1=Q
{[%clk 0:00:54.7]} 45. Rxg7+ {[%clk 0:00:21.7]} 45... Kh8 {[%clk 0:00:54.4]} 46.
Rxc7 {[%clk 0:00:18.5]} 46... Qf1+ {[%clk 0:00:52]} 47. Ke4 {[%clk 0:00:17.3]}
47... Qg2+ {[%clk 0:00:43.3]} 48. Ke5 {[%clk 0:00:16.2]} 48... Qh2+ {[%clk
0:00:42.2]} 49. Ke6 {[%clk 0:00:11.1]} 49... Qxc7 {[%clk 0:00:43.1]} 50. Ne7
{[%clk 0:00:11.5]} 50... c3 {[%clk 0:00:36]} 51. Ng6+ {[%clk 0:00:05.6]} 51...
Kh7 {[%clk 0:00:34.1]} 52. Ne7 {[%clk 0:00:05]} 52... c2 {[%clk 0:00:32.4]} 53.
g5 {[%clk 0:00:05.5]} 53... hxg5 {[%clk 0:00:30.6]} 54. hxg5 {[%clk 0:00:05.5]}
54... Qxe7+ {[%clk 0:00:30.7]} 55. Kxe7 {[%clk 0:00:04.5]} 55... Kg6 {[%clk
0:00:30.5]} 56. f7 {[%clk 0:00:04.5]} 56... c1=Q {[%clk 0:00:30.2]} 57. f8=Q
{[%clk 0:00:04.9]} 57... Qe3+ {[%clk 0:00:30.3]} 58. Kd7 {[%clk 0:00:04.6]}
58... Rxf8 {[%clk 0:00:30.8]} 59. Kxc6 {[%clk 0:00:05.1]} 59... Qe6+ {[%clk
0:00:29.9]} 0-1

[Event "*** Titled Tuesday Blitz"]
[Site "Chess.com"]
[Date "2020.12.29"]
[Round "7"]
[White "zurzan"]
[Black "HrvojeZagreb"]
[Result "0-1"]
[WhiteElo "2049"]
[BlackElo "2230"]
[TimeControl "180+1"]
[EndTime "11:17:44 PST"]
[Termination "HrvojeZagreb won by checkmate"]

1. f4 {[%clk 0:03:00.9]} 1... f5 {[%clk 0:02:58.2]} 2. Nf3 {[%clk 0:03:00.8]}
2... Nf6 {[%clk 0:02:58.5]} 3. g3 {[%clk 0:03:01.3]} 3... e6 {[%clk 0:02:58.8]}
4. Bg2 {[%clk 0:03:02.2]} 4... Be7 {[%clk 0:02:59.4]} 5. O-O {[%clk 0:03:03.1]}
5... O-O {[%clk 0:02:59.8]} 6. d3 {[%clk 0:03:03.8]} 6... d6 {[%clk 0:02:59.1]}
7. c3 {[%clk 0:03:04.1]} 7... Nc6 {[%clk 0:02:59.4]} 8. Qe1 {[%clk 0:03:04.4]}
8... e5 {[%clk 0:02:59.4]} 9. e4 {[%clk 0:03:02.5]} 9... exf4 {[%clk 0:02:55.9]}
10. Bxf4 {[%clk 0:03:00.5]} 10... fxe4 {[%clk 0:02:54.2]} 11. dxe4 {[%clk
0:03:00]} 11... Nh5 {[%clk 0:02:48]} 12. Be3 {[%clk 0:02:54.6]} 12... Bf6 {[%clk
0:02:38.7]} 13. Nbd2 {[%clk 0:02:52.2]} 13... Ne5 {[%clk 0:02:34.5]} 14. Nxe5
{[%clk 0:02:49.8]} 14... Bxe5 {[%clk 0:02:33.6]} 15. Rxf8+ {[%clk 0:02:47.5]}
15... Qxf8 {[%clk 0:02:33.7]} 16. Nf3 {[%clk 0:02:47.7]} 16... Bf6 {[%clk
0:02:25.6]} 17. Rd1 {[%clk 0:02:34.2]} 17... g6 {[%clk 0:02:18.6]} 18. Nd4
{[%clk 0:02:23.7]} 18... Bg4 {[%clk 0:02:14.2]} 19. Rd2 {[%clk 0:02:16.8]} 19...
Re8 {[%clk 0:02:04.8]} 20. Nb5 {[%clk 0:02:10.2]} 20... Bd8 {[%clk 0:01:57.1]}
21. Nxa7 {[%clk 0:02:05.2]} 21... Nf6 {[%clk 0:01:43.8]} 22. Bd4 {[%clk
0:01:33.9]} 22... c5 {[%clk 0:01:34.2]} 23. Bxf6 {[%clk 0:01:20.8]} 23... Bxf6
{[%clk 0:01:27.3]} 24. Nb5 {[%clk 0:01:20.1]} 24... Be5 {[%clk 0:01:26.8]} 25.
Nc7 {[%clk 0:01:07.9]} 25... Re7 {[%clk 0:01:22.8]} 26. Nd5 {[%clk 0:01:07.5]}
26... Rf7 {[%clk 0:01:22.9]} 27. Ne3 {[%clk 0:01:03.2]} 27... Be6 {[%clk
0:01:19]} 28. c4 {[%clk 0:00:58.8]} 28... Bd4 {[%clk 0:01:12.8]} 29. Kh1 {[%clk
0:00:58.5]} 29... Bxe3 {[%clk 0:01:03.7]} 30. Qxe3 {[%clk 0:00:58.5]} 30... Rf1+
{[%clk 0:01:01.6]} 31. Bxf1 {[%clk 0:00:58.2]} 31... Qxf1+ {[%clk 0:01:00.7]}
32. Qg1 {[%clk 0:00:58.1]} 32... Qf3+ {[%clk 0:01:00.7]} 33. Qg2 {[%clk
0:00:57.8]} 33... Qe3 {[%clk 0:00:53.1]} 34. b3 {[%clk 0:00:57.3]} 34... Qe1+
{[%clk 0:00:52.5]} 35. Qg1 {[%clk 0:00:52.7]} 35... Qxd2 {[%clk 0:00:51.9]} 36.
Qg2 {[%clk 0:00:48.3]} 36... Qe1+ {[%clk 0:00:50.3]} 37. Qg1 {[%clk 0:00:48.7]}
37... Qxe4+ {[%clk 0:00:50.3]} 38. Qg2 {[%clk 0:00:49.5]} 38... Qb1+ {[%clk
0:00:41.2]} 39. Qg1 {[%clk 0:00:48.7]} 39... Qxa2 {[%clk 0:00:41]} 40. Qe1
{[%clk 0:00:47.1]} 40... Bf7 {[%clk 0:00:25.9]} 41. Qe3 {[%clk 0:00:42.8]} 41...
Qb1+ {[%clk 0:00:22.1]} 42. Kg2 {[%clk 0:00:42.7]} 42... Qf5 {[%clk 0:00:21.5]}
43. h3 {[%clk 0:00:41]} 43... b6 {[%clk 0:00:20.6]} 44. Kh2 {[%clk 0:00:38.5]}
44... Qe5 {[%clk 0:00:19.5]} 45. Qd3 {[%clk 0:00:32.3]} 45... h5 {[%clk
0:00:18.9]} 46. h4 {[%clk 0:00:30.6]} 46... d5 {[%clk 0:00:18.2]} 47. cxd5
{[%clk 0:00:25.4]} 47... Qxd5 {[%clk 0:00:19.1]} 48. Qe3 {[%clk 0:00:24.1]}
48... Qxb3 {[%clk 0:00:17.8]} 49. Qe5 {[%clk 0:00:22.9]} 49... Qc2+ {[%clk
0:00:16.7]} 50. Kg1 {[%clk 0:00:22.5]} 50... Qf5 {[%clk 0:00:15.2]} 51. Qb8+
{[%clk 0:00:21.4]} 51... Kh7 {[%clk 0:00:15.5]} 52. Qxb6 {[%clk 0:00:21.9]}
52... c4 {[%clk 0:00:15.9]} 53. Qc7 {[%clk 0:00:19.5]} 53... Qf3 {[%clk
0:00:11.8]} 54. Kh2 {[%clk 0:00:18.9]} 54... c3 {[%clk 0:00:12]} 55. Kh3 {[%clk
0:00:16.1]} 55... Kh6 {[%clk 0:00:10.6]} 56. Kh2 {[%clk 0:00:16]} 56... Qf2+
{[%clk 0:00:10.4]} 57. Kh3 {[%clk 0:00:16.4]} 57... c2 {[%clk 0:00:10.9]} 58.
Qc3 {[%clk 0:00:14.1]} 58... Be6+ {[%clk 0:00:10.5]} 59. g4 {[%clk 0:00:13.1]}
59... Bxg4# {[%clk 0:00:10.9]} 0-1

[Event "*** Titled Tuesday Blitz"]
[Site "Chess.com"]
[Date "2020.12.29"]
[Round "7"]
[White "Forantes"]
[Black "Babujj"]
[Result "1/2-1/2"]
[WhiteElo "2389"]
[BlackElo "2529"]
[TimeControl "180+1"]
[EndTime "11:17:48 PST"]
[Termination "Game drawn by repetition"]

1. Nf3 {[%clk 0:03:00.9]} 1... Nf6 {[%clk 0:02:59.8]} 2. g3 {[%clk 0:03:00.8]}
2... d5 {[%clk 0:02:59.8]} 3. Bg2 {[%clk 0:03:01.1]} 3... c5 {[%clk 0:03:00.5]}
4. O-O {[%clk 0:03:01.6]} 4... Nc6 {[%clk 0:03:00.8]} 5. d4 {[%clk 0:03:02.2]}
5... cxd4 {[%clk 0:03:00.7]} 6. Nxd4 {[%clk 0:03:03.1]} 6... e5 {[%clk
0:03:01.3]} 7. Nxc6 {[%clk 0:03:03.5]} 7... bxc6 {[%clk 0:03:02.2]} 8. c4 {[%clk
0:03:04.3]} 8... Be7 {[%clk 0:03:02.7]} 9. Nc3 {[%clk 0:03:03.7]} 9... Be6
{[%clk 0:03:02.7]} 10. cxd5 {[%clk 0:03:03.8]} 10... cxd5 {[%clk 0:03:02.8]} 11.
Qa4+ {[%clk 0:02:49]} 11... Bd7 {[%clk 0:03:01.8]} 12. Qb3 {[%clk 0:02:45.8]}
12... Rb8 {[%clk 0:03:00.7]} 13. Qc2 {[%clk 0:02:37.6]} 13... d4 {[%clk
0:03:00.2]} 14. Ne4 {[%clk 0:02:35.6]} 14... O-O {[%clk 0:03:00]} 15. Nxf6+
{[%clk 0:02:30.1]} 15... Bxf6 {[%clk 0:02:59.6]} 16. b3 {[%clk 0:02:30]} 16...
Rc8 {[%clk 0:02:54.2]} 17. Qd2 {[%clk 0:02:27.3]} 17... Bf5 {[%clk 0:02:53.7]}
18. Ba3 {[%clk 0:02:23.3]} 18... Rc2 {[%clk 0:02:52.4]} 19. Qb4 {[%clk 0:02:06]}
19... Re8 {[%clk 0:02:49.3]} 20. Rfc1 {[%clk 0:01:54.4]} 20... Be7 {[%clk
0:02:45.4]} 21. Qa4 {[%clk 0:01:45.7]} 21... Bxa3 {[%clk 0:02:36.9]} 22. Qxa3
{[%clk 0:01:46.6]} 22... Rxe2 {[%clk 0:02:32.3]} 23. Qxa7 {[%clk 0:01:41.4]}
23... Qf6 {[%clk 0:02:26.3]} 24. Rf1 {[%clk 0:01:27]} 24... d3 {[%clk
0:02:11.2]} 25. a4 {[%clk 0:01:16.6]} 25... d2 {[%clk 0:02:09.5]} 26. Bf3 {[%clk
0:01:08.8]} 26... Bd3 {[%clk 0:01:42.7]} 27. Bxe2 {[%clk 0:01:04.8]} 27... Bxe2
{[%clk 0:01:43.6]} 28. Qe3 {[%clk 0:01:04.8]} 28... Bxf1 {[%clk 0:01:42.7]} 29.
Rxf1 {[%clk 0:01:04.2]} 29... Rd8 {[%clk 0:01:42.5]} 30. Rd1 {[%clk 0:01:03.4]}
30... Qd6 {[%clk 0:01:41.3]} 31. a5 {[%clk 0:01:02.9]} 31... h6 {[%clk
0:01:41.3]} 32. Qc3 {[%clk 0:00:33.4]} 32... Qd3 {[%clk 0:01:09.9]} 33. Qxd3
{[%clk 0:00:24.9]} 33... Rxd3 {[%clk 0:01:10.8]} 34. b4 {[%clk 0:00:17.8]} 34...
Rb3 {[%clk 0:01:05.6]} 35. Rxd2 {[%clk 0:00:17.6]} 35... Rxb4 {[%clk 0:01:06.1]}
36. Ra2 {[%clk 0:00:17.2]} 36... Rb7 {[%clk 0:01:04.6]} 37. a6 {[%clk
0:00:17.8]} 37... Ra7 {[%clk 0:01:05.3]} 38. Kg2 {[%clk 0:00:18.4]} 38... f5
{[%clk 0:01:05.8]} 39. Kf3 {[%clk 0:00:19]} 39... Kf7 {[%clk 0:01:06.4]} 40. Ke3
{[%clk 0:00:19.2]} 40... Ke6 {[%clk 0:01:05.8]} 41. Ra5 {[%clk 0:00:19.4]} 41...
g5 {[%clk 0:01:04.8]} 42. f4 {[%clk 0:00:18.2]} 42... e4 {[%clk 0:00:55.5]} 43.
Re5+ {[%clk 0:00:12.3]} 43... Kf6 {[%clk 0:00:54.8]} 44. Ra5 {[%clk 0:00:12.9]}
44... Ke6 {[%clk 0:00:48.4]} 45. Kd4 {[%clk 0:00:11.5]} 45... gxf4 {[%clk
0:00:48.5]} 46. gxf4 {[%clk 0:00:11.5]} 46... Rd7+ {[%clk 0:00:48.7]} 47. Ke3
{[%clk 0:00:11.9]} 47... Ra7 {[%clk 0:00:43.7]} 48. Kd4 {[%clk 0:00:10.1]} 48...
Kf6 {[%clk 0:00:29.3]} 49. Kc5 {[%clk 0:00:03.9]} 49... e3 {[%clk 0:00:29.5]}
50. Kb6 {[%clk 0:00:04.3]} 50... e2 {[%clk 0:00:27.9]} 51. Ra1 {[%clk
0:00:04.9]} 51... Rd7 {[%clk 0:00:25]} 52. Re1 {[%clk 0:00:05.1]} 52... Rd6+
{[%clk 0:00:24.4]} 53. Kb7 {[%clk 0:00:05.4]} 53... Rd7+ {[%clk 0:00:24.5]} 54.
Kc6 {[%clk 0:00:05.9]} 54... Re7 {[%clk 0:00:21.5]} 55. Kb6 {[%clk 0:00:05.8]}
55... Re6+ {[%clk 0:00:21.9]} 56. Ka5 {[%clk 0:00:05.8]} 56... Re7 {[%clk
0:00:17]} 57. Kb6 {[%clk 0:00:06.2]} 57... Re6+ {[%clk 0:00:17.4]} 58. Kb7
{[%clk 0:00:06.5]} 58... Re7+ {[%clk 0:00:17.9]} 59. Kb8 {[%clk 0:00:07]} 59...
Re8+ {[%clk 0:00:18.4]} 60. Kb7 {[%clk 0:00:07.4]} 60... Re7+ {[%clk 0:00:18.9]}
61. Kb6 {[%clk 0:00:07.7]} 1/2-1/2

[Event "*** Titled Tuesday Blitz"]
[Site "Chess.com"]
[Date "2020.12.29"]
[Round "7"]
[White "imdvb6307"]
[Black "TregubovP"]
[Result "0-1"]
[WhiteElo "2385"]
[BlackElo "2588"]
[TimeControl "180+1"]
[EndTime "11:17:49 PST"]
[Termination "TregubovP won by resignation"]

1. e4 {[%clk 0:03:00.9]} 1... e6 {[%clk 0:02:59.6]} 2. d4 {[%clk 0:03:00.4]}
2... d5 {[%clk 0:03:00]} 3. exd5 {[%clk 0:03:00.8]} 3... exd5 {[%clk 0:02:59.8]}
4. Bd3 {[%clk 0:03:01.3]} 4... Bd6 {[%clk 0:02:55.9]} 5. Qf3 {[%clk 0:03:01.2]}
5... Ne7 {[%clk 0:02:54.6]} 6. Ne2 {[%clk 0:02:56.4]} 6... Nbc6 {[%clk
0:02:50.4]} 7. c3 {[%clk 0:02:55.5]} 7... Be6 {[%clk 0:02:50.7]} 8. Bf4 {[%clk
0:02:55]} 8... Qd7 {[%clk 0:02:49.4]} 9. Bxd6 {[%clk 0:02:51.9]} 9... Qxd6
{[%clk 0:02:49.7]} 10. Qg3 {[%clk 0:02:52.5]} 10... O-O-O {[%clk 0:02:45.9]} 11.
Nd2 {[%clk 0:02:46.7]} 11... Bf5 {[%clk 0:02:43.5]} 12. Bxf5+ {[%clk 0:02:31.6]}
12... Nxf5 {[%clk 0:02:42.6]} 13. Qh3 {[%clk 0:02:31.7]} 13... g6 {[%clk
0:02:22]} 14. O-O-O {[%clk 0:02:29]} 14... Kb8 {[%clk 0:02:21.2]} 15. Ng3 {[%clk
0:02:01.7]} 15... Ng7 {[%clk 0:02:16.3]} 16. Qh4 {[%clk 0:01:55.8]} 16... Ne6
{[%clk 0:02:12.8]} 17. Ne2 {[%clk 0:01:36]} 17... f5 {[%clk 0:02:02.2]} 18. Nf3
{[%clk 0:01:29.7]} 18... h6 {[%clk 0:01:55.9]} 19. Qf6 {[%clk 0:01:24.7]} 19...
Nexd4 {[%clk 0:01:48.7]} 20. Qxd6 {[%clk 0:01:15.1]} 20... Nxe2+ {[%clk
0:01:48.8]} 21. Kd2 {[%clk 0:01:15.1]} 21... Rxd6 {[%clk 0:01:48.8]} 22. Kxe2
{[%clk 0:01:15.4]} 22... Re8+ {[%clk 0:01:40.1]} 23. Kd3 {[%clk 0:01:15.1]}
23... Ne5+ {[%clk 0:01:39.4]} 24. Nxe5 {[%clk 0:01:14.1]} 24... Rxe5 {[%clk
0:01:39.8]} 25. Rde1 {[%clk 0:01:14.2]} 25... Rde6 {[%clk 0:01:36.5]} 26. Rxe5
{[%clk 0:01:14.2]} 26... Rxe5 {[%clk 0:01:36.9]} 27. h4 {[%clk 0:01:14.7]} 27...
c5 {[%clk 0:01:35.6]} 28. f3 {[%clk 0:01:06.9]} 28... Kc7 {[%clk 0:01:34.5]} 29.
Rg1 {[%clk 0:01:05.2]} 29... f4 {[%clk 0:01:33.4]} 30. g3 {[%clk 0:01:04.5]}
30... Re3+ {[%clk 0:01:29.6]} 31. Kd2 {[%clk 0:01:03.4]} 31... Rxf3 {[%clk
0:01:29.9]} 32. gxf4 {[%clk 0:01:03.7]} 32... Rxf4 {[%clk 0:01:29.6]} 33. Rxg6
{[%clk 0:01:03.3]} 33... Rxh4 {[%clk 0:01:30.2]} 34. Kc2 {[%clk 0:00:49.8]}
34... Rh2+ {[%clk 0:01:25]} 35. Kb3 {[%clk 0:00:44.4]} 35... b5 {[%clk
0:01:02.1]} 36. a4 {[%clk 0:00:39]} 36... bxa4+ {[%clk 0:00:59.3]} 37. Kxa4
{[%clk 0:00:38.4]} 37... Rxb2 {[%clk 0:00:56.8]} 38. Rxh6 {[%clk 0:00:35]} 38...
Rb6 {[%clk 0:00:34.5]} 39. Rh5 {[%clk 0:00:31.1]} 39... Kd6 {[%clk 0:00:34]} 40.
Rh6+ {[%clk 0:00:30.5]} 40... Ke5 {[%clk 0:00:33.6]} 41. Rh5+ {[%clk 0:00:25.4]}
41... Ke4 {[%clk 0:00:33.5]} 42. Ka5 {[%clk 0:00:22.8]} 42... Rb3 {[%clk
0:00:30.1]} 43. c4 {[%clk 0:00:22.2]} 43... dxc4 {[%clk 0:00:23.4]} 44. Rxc5
{[%clk 0:00:21.2]} 44... Kd3 {[%clk 0:00:23.9]} 45. Rd5+ {[%clk 0:00:20.4]}
45... Kc2 {[%clk 0:00:23.9]} 46. Ka4 {[%clk 0:00:20.1]} 46... Rb7 {[%clk
0:00:20.1]} 47. Rh5 {[%clk 0:00:15.4]} 47... c3 {[%clk 0:00:20.2]} 48. Ka3
{[%clk 0:00:14.6]} 48... Rd7 {[%clk 0:00:14.5]} 49. Ka2 {[%clk 0:00:13.5]} 49...
Kc1 {[%clk 0:00:11.9]} 50. Ka1 {[%clk 0:00:09.7]} 50... c2 {[%clk 0:00:10.5]}
51. Rh2 {[%clk 0:00:08.4]} 51... Rd2 {[%clk 0:00:09]} 52. Rh1+ {[%clk
0:00:07.3]} 52... Rd1 {[%clk 0:00:09.3]} 53. Rh2 {[%clk 0:00:07.7]} 53... Re1
{[%clk 0:00:07.6]} 54. Rh7 {[%clk 0:00:02]} 54... Kd2+ {[%clk 0:00:06.7]} 0-1

[Event "*** Titled Tuesday Blitz"]
[Site "Chess.com"]
[Date "2020.12.29"]
[Round "7"]
[White "AlexeiShirov"]
[Black "DanielNaroditsky"]
[Result "0-1"]
[WhiteElo "2842"]
[BlackElo "3125"]
[TimeControl "180+1"]
[EndTime "11:17:50 PST"]
[Termination "DanielNaroditsky won on time"]

1. e4 {[%clk 0:03:00.9]} 1... g6 {[%clk 0:03:00.1]} 2. d4 {[%clk 0:03:00.5]}
2... Bg7 {[%clk 0:03:00.5]} 3. Nc3 {[%clk 0:03:01]} 3... d6 {[%clk 0:03:00.9]}
4. f4 {[%clk 0:03:00.8]} 4... Nf6 {[%clk 0:03:00.7]} 5. Nf3 {[%clk 0:03:00.2]}
5... O-O {[%clk 0:03:01.1]} 6. e5 {[%clk 0:02:59.9]} 6... dxe5 {[%clk
0:03:00.9]} 7. fxe5 {[%clk 0:02:58.8]} 7... Nd5 {[%clk 0:02:59.5]} 8. Bc4 {[%clk
0:02:57.9]} 8... c6 {[%clk 0:02:47.3]} 9. O-O {[%clk 0:02:49.9]} 9... Bf5 {[%clk
0:02:46.9]} 10. Ng5 {[%clk 0:02:43.1]} 10... h6 {[%clk 0:02:01.8]} 11. Nge4
{[%clk 0:02:27.3]} 11... Be6 {[%clk 0:02:02]} 12. Nc5 {[%clk 0:02:10.3]} 12...
Nxc3 {[%clk 0:01:44.4]} 13. Nxe6 {[%clk 0:02:10]} 13... Nxd1 {[%clk 0:01:44.4]}
14. Nxd8 {[%clk 0:02:09.8]} 14... Rxd8 {[%clk 0:01:44.3]} 15. Bxf7+ {[%clk
0:02:09.2]} 15... Kh7 {[%clk 0:01:45.1]} 16. Rxd1 {[%clk 0:02:08.4]} 16... Bxe5
{[%clk 0:01:45.8]} 17. c3 {[%clk 0:02:05.4]} 17... Bf6 {[%clk 0:01:38.9]} 18.
Bf4 {[%clk 0:02:00.2]} 18... Nd7 {[%clk 0:01:39]} 19. a4 {[%clk 0:01:43.8]}
19... Nb6 {[%clk 0:01:35.3]} 20. a5 {[%clk 0:01:39.3]} 20... Nd5 {[%clk
0:01:35.6]} 21. Bg3 {[%clk 0:01:35.1]} 21... a6 {[%clk 0:01:23.3]} 22. Ra3
{[%clk 0:01:34]} 22... Ne3 {[%clk 0:01:16.8]} 23. Rd3 {[%clk 0:01:26.8]} 23...
Nf5 {[%clk 0:01:16.8]} 24. Bc7 {[%clk 0:01:23.2]} 24... Rd7 {[%clk 0:01:11.3]}
25. Bb6 {[%clk 0:01:22]} 25... e5 {[%clk 0:01:03.7]} 26. Be6 {[%clk 0:01:20.9]}
26... Rd6 {[%clk 0:01:02.7]} 27. Bxf5 {[%clk 0:01:17.9]} 27... gxf5 {[%clk
0:01:03.6]} 28. Rb3 {[%clk 0:01:17.9]} 28... Rd7 {[%clk 0:00:57.7]} 29. Rf3
{[%clk 0:01:16.7]} 29... f4 {[%clk 0:00:56.2]} 30. dxe5 {[%clk 0:01:15.8]} 30...
Bxe5 {[%clk 0:00:57.1]} 31. Bd4 {[%clk 0:01:14.4]} 31... Bxd4+ {[%clk
0:00:54.2]} 32. cxd4 {[%clk 0:01:13.6]} 32... Rf8 {[%clk 0:00:53.7]} 33. g3
{[%clk 0:01:08.8]} 33... Rf5 {[%clk 0:00:53.7]} 34. Rxf4 {[%clk 0:01:05.9]}
34... Rxa5 {[%clk 0:00:54]} 35. Kg2 {[%clk 0:01:04.6]} 35... Rad5 {[%clk
0:00:54.1]} 36. Rb4 {[%clk 0:01:01.4]} 36... b5 {[%clk 0:00:53.7]} 37. Rf6
{[%clk 0:00:56.4]} 37... R5d6 {[%clk 0:00:48.2]} 38. Rf5 {[%clk 0:00:43.4]}
38... a5 {[%clk 0:00:46.5]} 39. Rb3 {[%clk 0:00:42.4]} 39... Rxd4 {[%clk
0:00:47.2]} 40. Rc5 {[%clk 0:00:39.5]} 40... R7d6 {[%clk 0:00:44.3]} 41. Kh3
{[%clk 0:00:35.1]} 41... Rd2 {[%clk 0:00:38.8]} 42. Ra3 {[%clk 0:00:30.4]} 42...
a4 {[%clk 0:00:38.7]} 43. b4 {[%clk 0:00:20.1]} 43... Rb2 {[%clk 0:00:30.1]} 44.
Re3 {[%clk 0:00:13.5]} 44... Rxb4 {[%clk 0:00:28]} 45. Re7+ {[%clk 0:00:13.2]}
45... Kg6 {[%clk 0:00:28.5]} 46. Ra7 {[%clk 0:00:13]} 46... Rbd4 {[%clk
0:00:24.3]} 47. Re5 {[%clk 0:00:12.6]} 47... R4d5 {[%clk 0:00:19.2]} 48. Re8
{[%clk 0:00:12]} 48... Rf6 {[%clk 0:00:14.8]} 49. g4 {[%clk 0:00:10.5]} 49...
Rf7 {[%clk 0:00:11.3]} 50. Re6+ {[%clk 0:00:08.7]} 50... Kg7 {[%clk 0:00:10.9]}
51. Ra6 {[%clk 0:00:07.7]} 51... Rc7 {[%clk 0:00:08]} 52. Kh4 {[%clk 0:00:06.5]}
52... Rd3 {[%clk 0:00:07.7]} 53. h3 {[%clk 0:00:05.9]} 53... a3 {[%clk
0:00:08.3]} 54. g5 {[%clk 0:00:04.2]} 54... hxg5+ {[%clk 0:00:08.2]} 55. Kxg5
{[%clk 0:00:04]} 55... Rxh3 {[%clk 0:00:08]} 56. Rexc6 {[%clk 0:00:02.7]} 56...
Rxc6 {[%clk 0:00:07.5]} 57. Rxc6 {[%clk 0:00:02.6]} 57... b4 {[%clk 0:00:07.9]}
58. Ra6 {[%clk 0:00:01.6]} 58... Rh2 {[%clk 0:00:06]} 0-1